bitfinex/quotes_SOLUSD_20250514
["timestamp","ask_amount","ask_price","bid_price","bid_amount"]
[1747207707941,60.35739947,181.15,181.1,13.43495952]
[1747207708932,46.92243995,181.15,181.03,1.5049]
[1747207709113,46.92243995,181.15,181.11,13.43495952]
[1747207709312,20.66,181.14,181.11,13.43495952]
[1747207709840,20.74,181.14,181.11,13.43495952]
[1747207710047,5.52089659,181.13,181.11,13.43495952]
[1747207710631,19.32313807,181.13,181.03,1.5049]
[1747207711141,19.32313807,181.13,181.09,13.43495952]
[1747207711514,19.32313807,181.13,181.1,13.43495952]
[1747207712533,19.32313807,181.13,181.12,13.43495952]
[1747207713437,19.32313807,181.13,181.11,13.43495952]
[1747207713731,19.32313807,181.13,181.12,13.43495952]
[1747207713932,19.32313807,181.13,181.03,6.47643835]
[1747207713933,19.32313807,181.13,181.03,1.5049]
[1747207714122,19.32313807,181.13,181.09,13.43495952]
[1747207715704,32.75809759,181.13,181.08,13.43495952]
[1747207715909,32.75809759,181.13,181.03,1.5049]
[1747207715910,13.43495952,181.11,181.06,13.43495952]
[1747207716267,46.92762103,181.13,181.09,13.43495952]
[1747207716406,20.86,181.12,181.03,1.5049]
[1747207716609,20.86,181.12,181.08,13.43495952]
[1747207717018,67.86762103,181.13,181.03,1.5049]
[1747207717019,19.32313807,181.13,181.09,13.43495952]
[1747207717217,34.66224148,181.13,181.08,13.43495952]
[1747207717414,34.66224148,181.13,181.03,1.5049]
[1747207717415,13.43495952,181.12,181.03,1.5049]
[1747207717618,13.43495952,181.12,181.07,13.43495952]
[1747207717835,13.80224148,181.13,181.08,13.43495952]
[1747207718022,20.84,181.12,181.08,13.43495952]
[1747207718225,34.64224148,181.13,181.08,13.43495952]
[1747207718423,13.80224148,181.13,181.09,13.43495952]
[1747207718625,34.64224148,181.13,181.09,13.43495952]
[1747207718808,34.64224148,181.13,181.1,13.43495952]
[1747207719015,34.64224148,181.13,181.09,13.43495952]
[1747207719215,40.16313807,181.13,181.09,13.43495952]
[1747207720446,40.16313807,181.13,181.1,13.43495952]
[1747207720645,40.16313807,181.13,181.11,13.43495952]
[1747207720951,19.32313807,181.13,181.11,13.43495952]
[1747207721443,19.32313807,181.13,181.12,13.43495952]
[1747207721648,5.52089659,181.13,181.12,13.43495952]
[1747207723261,13.80038041,181.16,181.12,13.43495952]
[1747207723452,13.80038041,181.16,181.15,13.43495952]
[1747207724865,13.80038041,181.16,181.11,1.6273]
[1747207725069,13.80038041,181.16,181.15,13.43495952]
[1747207726567,5.51937299,181.18,181.15,13.43495952]
[1747207726739,5.51937299,181.18,181.17,26.86991904]
[1747207727250,5.51785024,181.23,181.17,26.86991904]
[1747207727556,5.51785024,181.23,181.22,13.43495952]
[1747207728537,13.79349012,181.25,181.22,13.43495952]
[1747207728945,13.79349012,181.25,181.23,13.43495952]
[1747207729332,13.79349012,181.25,181.2,1.5576]
[1747207729333,5.51693699,181.26,181.24,13.43495952]
[1747207729548,5.51693699,181.26,181.25,13.43495952]
[1747207730565,5.51693699,181.26,181.2,1.5576]
[1747207730760,5.51663264,181.27,181.25,13.43495952]
[1747207730950,5.51663264,181.27,181.26,13.43495952]
[1747207731661,32.74317377,181.27,181.16,1.5861]
[1747207731862,13.43495952,181.24,181.19,13.43495952]
[1747207732177,34.03495952,181.24,181.19,13.43495952]
[1747207732683,19.31247585,181.23,181.16,1.5861]
[1747207732976,19.31247585,181.23,181.19,13.43495952]
[1747207734383,19.31247585,181.23,181.2,13.43495952]
[1747207735261,19.31247585,181.23,181.19,13.43495952]
[1747207735873,19.31247585,181.23,181.2,13.43495952]
[1747207736675,19.31247585,181.23,181.21,13.43495952]
[1747207738270,19.31247585,181.23,181.2,13.43495952]
[1747207738963,13.43495952,181.22,181.16,13.43495952]
[1747207739171,13.43495952,181.2,181.15,13.43495952]
[1747207739372,13.43495952,181.21,181.16,13.43495952]
[1747207740063,13.43495952,181.22,181.17,13.43495952]
[1747207740459,41.38387683,181.23,181.17,13.43495952]
[1747207740677,54.81883635,181.23,181.17,13.43495952]
[1747207740891,54.81883635,181.23,181.13,6.5055]
[1747207740892,27.58620689,181.25,181.2,13.43495952]
[1747207741062,47.94620689,181.25,181.21,13.43495952]
[1747207741265,61.38116641,181.25,181.2,13.43495952]
[1747207741960,27.58620689,181.25,181.21,13.43495952]
[1747207742463,27.58620689,181.25,181.22,13.43495952]
[1747207742654,20.36,181.26,181.22,13.43495952]
[1747207742860,20.36,181.27,181.22,13.43495952]
[1747207743060,19.30927948,181.26,181.22,13.43495952]
[1747207744663,19.30927948,181.26,181.23,13.43495952]
[1747207744880,19.30927948,181.26,181.25,13.43495952]
[1747207745199,27.58164165,181.28,181.24,13.43495952]
[1747207745364,27.58164165,181.28,181.18,1.6592]
[1747207745567,27.58164165,181.28,181.24,13.43495952]
[1747207745993,27.58164165,181.28,181.18,1.6592]
[1747207746161,27.58164165,181.28,181.24,13.43495952]
[1747207746359,27.58164165,181.28,181.23,13.43495952]
[1747207747486,46.8887908,181.28,181.23,13.43495952]
[1747207748078,13.43495952,181.24,181.17,13.43495952]
[1747207748286,13.43495952,181.24,181.13,8.0243]
[1747207748287,20.22,181.23,181.19,13.43495952]
[1747207749492,46.54388788,181.22,181.13,8.0243]
[1747207749667,46.54388788,181.22,181.16,13.43495952]
[1747207749863,60.3392747,181.22,181.17,13.43495952]
[1747207750096,46.90431518,181.22,181.13,8.0243]
[1747207750391,60.3392747,181.22,181.17,13.43495952]
[1747207750693,60.3392747,181.22,181.13,8.0243]
[1747207750694,46.90431518,181.22,181.18,13.43495952]
[1747207750862,46.40431518,181.22,181.18,13.43495952]
[1747207752968,46.40431518,181.22,181.19,13.43495952]
[1747207753170,18.81354154,181.22,181.21,13.43495952]
[1747207753573,5.01815472,181.22,181.21,13.43495952]
[1747207754268,13.79329203,181.25,181.21,13.43495952]
[1747207754473,13.79329203,181.25,181.24,13.43495952]
[1747207755175,13.79329203,181.25,181.15,46.2]
[1747207755363,13.79329203,181.25,181.22,13.43495952]
[1747207755562,13.79329203,181.25,181.21,13.43495952]
[1747207756372,19.3105334,181.25,181.21,13.43495952]
[1747207756801,19.3105334,181.25,181.23,13.43495952]
[1747207756973,19.3105334,181.25,181.17,13.43495952]
[1747207757167,19.3105334,181.25,181.23,13.43495952]
[1747207757898,13.79329203,181.25,181.23,13.43495952]
[1747207759384,13.79329203,181.25,181.24,13.43495952]
[1747207761071,13.79329203,181.25,181.21,13.43495952]
[1747207761267,13.43495952,181.23,181.13,8.0243]
[1747207761499,13.43495952,181.23,181.17,13.43495952]
[1747207761696,27.22825155,181.25,181.2,13.43495952]
[1747207762002,13.79329203,181.25,181.21,13.43495952]
[1747207762200,13.79329203,181.25,181.2,13.43495952]
[1747207763703,19.3105334,181.25,181.2,13.43495952]
[1747207763902,32.74549292,181.25,181.2,13.43495952]
[1747207764779,19.3105334,181.25,181.21,13.43495952]
[1747207765101,19.3105334,181.25,181.22,13.43495952]
[1747207765279,19.3105334,181.25,181.21,13.43495952]
[1747207767326,19.3105334,181.25,181.21,8.44110541]
[1747207767602,55.3378457,181.25,181.2,8.44110541]
[1747207769281,55.3378457,181.25,181.13,34.0243]
[1747207769483,55.3378457,181.25,181.2,8.44110541]
[1747207771007,46.89674029,181.25,181.21,8.44110541]
[1747207771708,46.89674029,181.25,181.23,8.44110541]
[1747207771709,19.3105334,181.25,181.23,8.44110541]
[1747207772610,19.3105334,181.25,181.24,8.44110541]
[1747207773177,13.79329203,181.25,181.24,8.44110541]
[1747207777314,19.30714915,181.28,181.24,8.44110541]
[1747207777617,19.30714915,181.28,181.27,8.44110541]
[1747207777992,5.51632833,181.28,181.27,8.44110541]
[1747207778617,5.5157198,181.3,181.27,8.44110541]
[1747207778837,13.78669172,181.34,181.29,8.44110541]
[1747207778989,19.30119486,181.34,181.33,8.44110541]
[1747207780219,5.51450314,181.34,181.33,8.44110541]
[1747207781517,19.30076099,181.34,181.33,8.44110541]
[1747207781913,8.44110541,181.38,181.33,8.44110541]
[1747207781914,19.2975685,181.37,181.33,8.44110541]
[1747207782218,8.44110541,181.35,181.3,8.44110541]
[1747207782410,8.44110541,181.35,181.28,1.5334]
[1747207782720,19.2975685,181.37,181.3,8.44110541]
[1747207783018,8.44110541,181.33,181.28,9.97450541]
[1747207783194,8.44110541,181.33,181.28,8.44110541]
[1747207784297,19.30288991,181.32,181.28,8.44110541]
[1747207784922,19.30288991,181.32,181.3,8.44110541]
[1747207785092,19.30288991,181.32,181.29,8.44110541]
[1747207785488,19.30288991,181.32,181.3,8.44110541]
[1747207785710,19.30288991,181.32,181.24,1.5001]
[1747207785711,8.44110541,181.31,181.24,1.5001]
[1747207785911,8.44110541,181.29,181.24,9.94120541]
[1747207786300,19.30714915,181.28,181.24,9.94120541]
[1747207786815,19.30714915,181.28,181.21,8.44110541]
[1747207786816,8.44110541,181.26,181.21,8.44110541]
[1747207787190,8.44110541,181.27,181.22,8.44110541]
[1747207787604,46.8887908,181.28,181.22,8.44110541]
[1747207787822,8.44110541,181.27,181.22,8.44110541]
[1747207788511,19.30927948,181.26,181.22,8.44110541]
[1747207790000,19.30927948,181.26,181.23,8.44110541]
[1747207790704,13.79234249,181.26,181.23,8.44110541]
[1747207791917,13.79234249,181.26,181.22,8.44110541]
[1747207792720,13.79234249,181.26,181.23,8.44110541]
[1747207792928,19.30927948,181.26,181.23,8.44110541]
[1747207793609,55.33506987,181.26,181.18,1.5797]
[1747207793905,8.44110541,181.23,181.18,8.44110541]
[1747207794115,8.44110541,181.22,181.17,8.44110541]
[1747207794301,8.44110541,181.23,181.18,8.44110541]
[1747207794729,8.44110541,181.2,181.12,7.5474]
[1747207794910,19.31673933,181.19,181.15,8.44110541]
[1747207795315,19.31673933,181.19,181.16,8.44110541]
[1747207795518,19.31673933,181.19,181.17,8.44110541]
[1747207796944,13.79767095,181.19,181.17,8.44110541]
[1747207799141,13.79767095,181.19,181.18,8.44110541]
[1747207800224,5.51845924,181.21,181.18,8.44110541]
[1747207800437,5.51845924,181.21,181.2,8.44110541]
[1747207801051,13.79512538,181.23,181.2,8.44110541]
[1747207801203,5.51754579,181.24,181.22,8.44110541]
[1747207801542,5.51754579,181.24,181.23,8.44110541]
[1747207801743,5.51693699,181.26,181.23,8.44110541]
[1747207802042,5.51693699,181.26,181.25,8.44110541]
[1747207802917,19.3050193,181.3,181.25,8.44110541]
[1747207803118,19.3050193,181.3,181.26,8.44110541]
[1747207803631,19.3050193,181.3,181.2,1.5154]
[1747207803632,8.44110541,181.27,181.2,1.5154]
[1747207803848,8.44110541,181.27,181.16,6.0707]
[1747207803849,100.4622173,181.3,181.16,7.6355]
[1747207804028,100.4622173,181.3,181.06,243.93497091]
[1747207804029,8.44110541,181.21,181.12,1.5648]
[1747207804335,8.44110541,181.21,181.19,8.44110541]
[1747207804336,19.48,181.21,181.19,8.44110541]
[1747207804642,19.5,181.26,181.2,8.44110541]
[1747207805011,19.31034481,181.25,181.21,8.44110541]
[1747207805220,27.75145022,181.25,181.19,8.44110541]
[1747207805635,8.44110541,181.24,181.19,8.44110541]
[1747207805818,8.44110541,181.24,181.14,26.0]
[1747207806015,8.44110541,181.24,181.18,8.44110541]
[1747207806224,8.44110541,181.21,181.16,8.44110541]
[1747207806525,8.44110541,181.21,181.15,8.44110541]
[1747207806723,46.8965517,181.25,181.12,1.5648]
[1747207806724,8.44110541,181.18,181.12,1.5648]
[1747207806924,19.31887177,181.17,181.12,10.00590541]
[1747207807235,19.31887177,181.17,181.13,13.51712341]
[1747207807439,19.31887177,181.17,181.15,13.51712341]
[1747207807639,19.31887177,181.17,181.16,13.51712341]
[1747207807640,5.51967765,181.17,181.16,13.51712341]
[1747207807942,19.31887177,181.17,181.15,13.51712341]
[1747207808868,5.51967765,181.17,181.16,13.51712341]
[1747207809051,5.51845924,181.21,181.16,13.51712341]
[1747207809347,5.51845924,181.21,181.2,13.51712341]
[1747207809938,5.51724137,181.25,181.2,13.51712341]
[1747207810130,5.51724137,181.25,181.24,13.51712341]
[1747207810325,5.51724137,181.25,181.21,1.5815]
[1747207810541,5.51724137,181.25,181.24,13.51712341]
[1747207811133,5.51632833,181.28,181.24,13.51712341]
[1747207811336,5.51632833,181.28,181.26,13.51712341]
[1747207812355,5.51632833,181.28,181.27,13.51712341]
[1747207812846,13.78965717,181.3,181.27,13.51712341]
[1747207812847,24.9951114,181.32,181.27,13.51712341]
[1747207813043,24.9951114,181.32,181.3,13.51712341]
[1747207813248,38.78288991,181.32,181.21,1.5815]
[1747207813420,52.30001332,181.32,181.26,13.51712341]
[1747207813621,13.51712341,181.3,181.25,13.51712341]
[1747207813820,13.51712341,181.28,181.21,1.5815]
[1747207814027,13.51712341,181.26,181.21,15.09862341]
[1747207814464,13.51712341,181.27,181.22,13.51712341]
[1747207814635,13.51712341,181.28,181.23,13.51712341]
[1747207815040,66.35844693,181.32,181.21,1.5815]
[1747207815229,13.51712341,181.29,181.24,13.51712341]
[1747207815434,19.5,181.29,181.25,13.51712341]
[1747207816052,19.30288991,181.32,181.28,13.51712341]
[1747207816247,19.30288991,181.32,181.3,13.51712341]
[1747207816759,5.5151114,181.32,181.31,13.51712341]
[1747207817122,5.51450314,181.34,181.31,13.51712341]
[1747207817349,19.30076099,181.34,181.26,20.14982341]
[1747207817565,19.30076099,181.34,181.32,13.51712341]
[1747207818735,5.51450314,181.34,181.33,13.51712341]
[1747207819325,19.29773859,181.37,181.32,13.51712341]
[1747207819532,60.382817,181.37,181.32,13.51712341]
[1747207819758,60.382817,181.37,181.3,1.637]
[1747207819759,46.86569359,181.37,181.33,13.51712341]
[1747207820642,19.29773859,181.37,181.33,13.51712341]
[1747207822838,19.29773859,181.37,181.3,1.637]
[1747207823068,13.51712341,181.32,181.25,1.561]
[1747207823373,19.30395454,181.31,181.27,13.51712341]
[1747207823935,19.30395454,181.31,181.28,13.51712341]
[1747207824868,32.82107795,181.31,181.25,1.561]
[1747207825029,52.18107795,181.31,181.26,13.51712341]
[1747207825232,38.66395454,181.31,181.27,13.51712341]
[1747207825872,19.30395454,181.31,181.3,13.51712341]
[1747207826037,19.30395454,181.31,181.29,13.51712341]
[1747207826234,5.51541558,181.31,181.25,1.561]
[1747207826546,5.51541558,181.31,181.3,13.51712341]
[1747207826752,5.51450314,181.34,181.3,13.51712341]
[1747207826937,5.51450314,181.34,181.33,13.51712341]
[1747207827535,5.51419906,181.35,181.33,13.51712341]
[1747207827754,5.51419906,181.35,181.34,13.51712341]
[1747207828366,5.51298307,181.39,181.34,13.51712341]
[1747207828579,5.51298307,181.39,181.38,13.51712341]
[1747207829450,13.78183152,181.4,181.38,13.51712341]
[1747207830235,13.78183152,181.4,181.33,1.5397]
[1747207830442,27.2162661,181.4,181.35,13.51712341]
[1747207831068,13.69914269,181.4,181.36,13.51712341]
[1747207831571,13.69914269,181.4,181.38,13.51712341]
[1747207831772,13.69914269,181.4,181.37,13.51712341]
[1747207832141,13.69914269,181.4,181.39,13.51712341]
[1747207832342,5.51207143,181.42,181.35,13.51712341]
[1747207832567,19.29225002,181.42,181.39,13.51712341]
[1747207833547,13.78017859,181.42,181.39,13.51712341]
[1747207833755,5.51176762,181.43,181.41,13.51712341]
[1747207833956,5.51176762,181.43,181.42,13.51712341]
[1747207834274,13.7760653,181.48,181.42,13.51712341]
[1747207834451,13.7760653,181.48,181.46,13.51712341]
[1747207835790,13.7760653,181.48,181.41,1.6034]
[1747207835963,13.51712341,181.47,181.42,13.51712341]
[1747207836164,13.51712341,181.46,181.41,15.12052341]
[1747207836392,13.51712341,181.47,181.42,13.51712341]
[1747207836692,13.7760653,181.48,181.41,1.6034]
[1747207836693,13.51712341,181.46,181.41,15.12052341]
[1747207836886,13.51712341,181.46,181.41,1.6034]
[1747207837093,13.51712341,181.45,181.4,13.51712341]
[1747207837567,19.29012345,181.44,181.4,13.51712341]
[1747207837887,13.51712341,181.43,181.38,13.51712341]
[1747207838275,13.51712341,181.4,181.33,1.5658]
[1747207838588,13.51712341,181.4,181.35,13.51712341]
[1747207838758,13.51712341,181.39,181.33,15.08292341]
[1747207838958,19.24,181.43,181.33,1.5658]
[1747207839162,13.51712341,181.41,181.36,13.51712341]
[1747207839393,13.51712341,181.4,181.35,13.51712341]
[1747207839567,19.29544075,181.39,181.35,13.51712341]
[1747207839758,19.29544075,181.39,181.33,1.5658]
[1747207839960,13.51712341,181.37,181.29,7.6433]
[1747207840192,32.81256416,181.39,181.34,13.51712341]
[1747207840562,32.81256416,181.39,181.29,7.6433]
[1747207840563,13.51712341,181.35,181.29,7.6433]
[1747207840791,13.51712341,181.35,181.3,13.51712341]
[1747207841006,13.51712341,181.34,181.29,15.13192341]
[1747207841306,13.51712341,181.35,181.3,13.51712341]
[1747207841503,19.30076099,181.34,181.31,13.51712341]
[1747207841800,5.51450314,181.34,181.33,13.51712341]
[1747207841965,5.51450314,181.34,181.29,1.6148]
[1747207842167,5.51450314,181.34,181.33,13.51712341]
[1747207842875,5.513591,181.37,181.33,13.51712341]
[1747207843077,5.513591,181.37,181.36,13.51712341]
[1747207843398,5.51267916,181.4,181.36,13.51712341]
[1747207843584,13.78115971,181.41,181.39,13.51712341]
[1747207843897,13.78115971,181.41,181.37,13.51712341]
[1747207844607,13.78115971,181.41,181.4,13.51712341]
[1747207845875,27.55731922,181.44,181.4,13.51712341]
[1747207846077,27.55731922,181.44,181.35,13.51712341]
[1747207846298,13.51712341,181.43,181.38,13.51712341]
[1747207847103,27.55731922,181.44,181.37,13.51712341]
[1747207847410,13.51712341,181.4,181.35,13.51712341]
[1747207847903,32.81362798,181.38,181.33,13.51712341]
[1747207848097,13.51712341,181.36,181.29,1.6148]
[1747207848298,13.51712341,181.35,181.3,13.51712341]
[1747207848795,13.51712341,181.36,181.29,1.6148]
[1747207849012,13.51712341,181.36,181.31,13.51712341]
[1747207849816,19.29969671,181.35,181.31,13.51712341]
[1747207851988,13.78549765,181.35,181.32,13.51712341]
[1747207852315,5.513591,181.37,181.34,13.51712341]
[1747207852511,5.513591,181.37,181.35,13.51712341]
[1747207853000,5.513591,181.37,181.36,13.51712341]
[1747207853999,13.78352133,181.38,181.36,13.51712341]
[1747207854313,13.78352133,181.38,181.29,27.6148]
[1747207854516,13.78352133,181.38,181.34,13.51712341]
[1747207855493,13.78352133,181.38,181.35,13.51712341]
[1747207856009,13.78352133,181.38,181.37,13.51712341]
[1747207856609,13.78352133,181.38,181.36,13.51712341]
[1747207857488,13.78352133,181.38,181.35,13.51712341]
[1747207857703,13.78352133,181.38,181.34,13.51712341]
[1747207858092,19.29680835,181.38,181.34,13.51712341]
[1747207858712,19.29680835,181.38,181.29,27.6148]
[1747207858713,13.51712341,181.35,181.29,1.6148]
[1747207858906,13.51712341,181.35,181.3,13.51712341]
[1747207859111,46.86324345,181.38,181.29,1.6148]
[1747207859112,13.51712341,181.34,181.29,1.6148]
[1747207859300,13.51712341,181.33,181.27,13.51712341]
[1747207859509,13.51712341,181.31,181.26,13.51712341]
[1747207859820,13.51712341,181.3,181.19,25.775]
[1747207860127,19.30608416,181.29,181.24,13.51712341]
[1747207860300,32.82320757,181.29,181.24,13.51712341]
[1747207860826,13.51712341,181.25,181.16,1.5499]
[1747207860995,32.79712341,181.24,181.16,1.5499]
[1747207861193,13.51712341,181.22,181.17,13.51712341]
[1747207861395,13.51712341,181.2,181.11,8.1665]
[1747207861624,45.28,181.24,181.11,1.6249]
[1747207861625,13.51712341,181.17,181.11,1.6249]
[1747207861924,19.28,181.17,181.14,13.51712341]
[1747207862097,5.51998233,181.16,181.14,13.51712341]
[1747207862520,5.51998233,181.16,181.15,13.51712341]
[1747207863808,5.51970125,181.17,181.15,13.51712341]
[1747207864017,19.31889537,181.17,181.11,27.6249]
[1747207864208,32.83601878,181.17,181.12,13.51712341]
[1747207865418,32.83601878,181.17,181.11,1.6249]
[1747207865612,13.51712341,181.14,181.09,13.51712341]
[1747207866014,13.51712341,181.15,181.1,13.51712341]
[1747207866213,5.5205918,181.14,181.1,13.51712341]
[1747207867026,5.5205918,181.14,181.11,13.51712341]
[1747207867238,5.5205918,181.14,181.1,13.51712341]
[1747207867413,19.32207131,181.14,181.1,13.51712341]
[1747207867613,19.32207131,181.14,179.53,91.7255]
[1747207867614,13.51712341,181.11,181.03,13.51712341]
[1747207867809,13.51712341,181.11,181.0,1.0]
[1747207867810,26.0,181.09,181.0,1.0]
[1747207868013,13.51712341,181.01,181.0,1.0]
[1747207868216,5.52455665,181.01,181.0,1.0]
[1747207868411,24.84455665,181.01,181.0,1.0]
[1747207868733,5.52303103,181.06,181.0,14.51712341]
[1747207869034,5.52303103,181.06,181.05,13.51712341]
[1747207869322,5.52181115,181.1,181.05,13.51712341]
[1747207869634,19.32633903,181.1,181.06,13.51712341]
[1747207870218,19.32633903,181.1,181.07,13.51712341]
[1747207870510,19.32633903,181.1,181.03,26.0]
[1747207870724,19.32633903,181.1,181.06,13.51712341]
[1747207870940,32.84346244,181.1,181.01,32.4074]
[1747207871139,32.84346244,181.1,181.05,13.51712341]
[1747207871438,19.32633903,181.1,181.06,19.98457223]
[1747207871597,19.32633903,181.1,181.07,19.98457223]
[1747207871803,5.52181115,181.1,181.08,19.98457223]
[1747207872322,5.52181115,181.1,181.07,19.98457223]
[1747207872525,19.32633903,181.1,181.05,19.98457223]
[1747207872766,19.98457223,181.08,181.0,1.0]
[1747207872928,19.98457223,181.09,181.05,19.98457223]
[1747207873128,19.32633903,181.1,181.0,1.0]
[1747207873443,19.32633903,181.1,181.06,19.98457223]
[1747207874033,5.52181115,181.1,181.08,19.98457223]
[1747207874246,5.52181115,181.1,181.09,19.98457223]
[1747207874452,39.30789465,181.13,181.02,26.0]
[1747207874852,39.30789465,181.13,181.02,19.98457223]
[1747207874853,19.98457223,181.07,181.02,19.98457223]
[1747207875056,19.64,181.07,181.03,19.98457223]
[1747207876131,19.98457223,181.11,181.05,19.98457223]
[1747207876500,39.31197848,181.09,181.04,19.98457223]
[1747207876933,39.31197848,181.09,181.0,1.0]
[1747207876934,19.98457223,181.08,181.0,1.0]
[1747207877131,19.98457223,181.06,181.01,19.98457223]
[1747207877351,19.98457223,181.08,181.02,19.98457223]
[1747207877535,19.98457223,181.07,181.02,19.98457223]
[1747207877742,19.98457223,181.04,181.0,1.0]
[1747207878056,39.62457223,181.03,181.0,1.0]
[1747207878545,25.50882369,181.02,181.0,1.0]
[1747207878731,19.98457223,181.01,181.0,1.0]
[1747207878937,58.90311646,181.01,181.0,1.0]
[1747207879131,61.77473426,181.01,181.0,1.0]
[1747207879751,67.79016203,181.01,181.0,1.0]
[1747207879945,106.91016203,181.01,181.0,1.0]
[1747207880555,73.31471868,181.01,181.0,1.0]
[1747207880742,112.43471868,181.01,181.0,1.0]
[1747207881166,93.50074668,181.01,181.0,1.0]
[1747207881567,64.62912888,181.01,181.0,1.0]
[1747207881770,25.24455665,181.01,181.0,1.0]
[1747207881956,45.22912888,181.01,181.0,1.0]
[1747207882266,87.01903473,181.01,181.0,1.0]
[1747207882857,47.3144625,181.01,181.0,1.0]
[1747207883063,86.3944625,181.01,181.0,1.0]
[1747207883370,106.37903473,181.01,181.0,1.0]
[1747207883574,45.453972,181.0,180.99,8.6697199]
[1747207883761,44.933972,180.97,180.78,1.6615]
[1747207884079,19.98457223,180.91,180.86,19.98457223]
[1747207884277,26.0,180.94,180.85,19.98457223]
[1747207884278,39.68457223,180.9,180.85,19.98457223]
[1747207884773,39.68457223,180.9,180.78,1.6615]
[1747207884774,19.98457223,180.86,180.78,1.6615]
[1747207884978,19.98457223,180.81,180.72,7.677]
[1747207885273,39.72457223,180.8,180.75,19.98457223]
[1747207885451,19.74,180.8,180.72,7.677]
[1747207885651,19.98457223,180.79,180.72,7.677]
[1747207886063,19.98457223,180.77,180.72,1.5345]
[1747207886359,19.98457223,180.75,180.67,6.2366]
[1747207886538,19.35947784,180.79,180.67,6.2366]
[1747207886741,19.98457223,180.74,180.69,19.98457223]
[1747207886975,19.98457223,180.72,180.66,1.5804]
[1747207887173,19.98457223,180.72,180.66,21.56497223]
[1747207887375,19.98457223,180.73,180.68,19.98457223]
[1747207887551,39.70457223,180.72,180.67,19.98457223]
[1747207887738,19.98457223,180.71,180.66,1.5804]
[1747207887946,19.72,180.72,180.67,19.98457223]
[1747207888166,19.98457223,180.74,180.68,19.98457223]
[1747207888351,39.86457223,180.75,180.66,1.5804]
[1747207888556,5.53342186,180.72,180.66,1.5804]
[1747207888762,19.98457223,180.71,180.66,1.5804]
[1747207889263,19.98457223,180.71,180.66,21.56497223]
[1747207889468,19.36697653,180.72,180.67,19.98457223]
[1747207889650,5.53342186,180.72,180.69,19.98457223]
[1747207889848,19.36697653,180.72,180.66,1.5804]
[1747207890067,19.98457223,180.68,180.59,1.5635]
[1747207890456,19.98457223,180.65,180.6,19.98457223]
[1747207890657,5.53587245,180.64,180.6,19.98457223]
[1747207891081,5.5352596,180.66,180.63,19.98457223]
[1747207891249,27.66710934,180.72,180.6,26.0]
[1747207891250,5.53403431,180.7,180.6,26.0]
[1747207891450,5.53403431,180.7,180.68,19.98457223]
[1747207891648,5.53403431,180.7,180.69,19.98457223]
[1747207891878,5.53403431,180.7,180.64,1.5356]
[1747207892087,5.53403431,180.7,180.69,19.98457223]
[1747207892262,5.53403431,180.7,180.64,20.9356]
[1747207892462,5.53403431,180.7,180.69,19.98457223]
[1747207892660,19.36665108,180.73,180.64,20.9356]
[1747207892862,39.35122331,180.73,180.68,19.98457223]
[1747207893079,39.35122331,180.73,180.66,19.98457223]
[1747207893080,19.98457223,180.71,180.66,19.98457223]
[1747207893263,19.98457223,180.72,180.66,19.98457223]
[1747207893463,19.36665108,180.73,180.64,20.9356]
[1747207893464,19.36665108,180.73,180.7,19.98457223]
[1747207893667,5.53250345,180.75,180.67,6.487]
[1747207894052,19.98457223,180.74,180.69,19.98457223]
[1747207894261,19.98457223,180.73,180.67,6.487]
[1747207894471,19.98457223,180.72,180.67,19.98457223]
[1747207894675,5.53372807,180.71,180.67,19.98457223]
[1747207894875,5.53372807,180.71,180.64,1.5356]
[1747207895182,5.53372807,180.71,180.67,19.98457223]
[1747207895760,5.53372807,180.71,180.7,19.98457223]
[1747207895953,5.53280956,180.74,180.7,19.98457223]
[1747207896160,5.53280956,180.74,180.64,27.5356]
[1747207896161,5.53189135,180.77,180.73,19.98457223]
[1747207896364,5.53189135,180.77,180.75,19.98457223]
[1747207897161,5.53189135,180.77,180.69,19.4]
[1747207897483,5.53189135,180.77,180.76,19.98457223]
[1747207898481,39.34619196,180.77,180.69,19.4]
[1747207898681,19.98457223,180.7,180.64,1.5356]
[1747207898862,19.98457223,180.68,180.64,1.5356]
[1747207899068,19.98,180.69,180.61,19.98457223]
[1747207899069,19.98457223,180.67,180.61,19.98457223]
[1747207899259,19.98457223,180.67,180.58,1.545]
[1747207899455,19.98457223,180.62,180.58,1.545]
[1747207899666,19.98457223,180.62,180.56,19.98457223]
[1747207900080,19.98457223,180.64,180.59,19.98457223]
[1747207900273,20.0,180.63,180.59,19.98457223]
[1747207900585,39.98457223,180.63,180.58,19.98457223]
[1747207900783,19.37769902,180.62,180.58,19.98457223]
[1747207901166,5.53648543,180.62,180.61,19.98457223]
[1747207901367,5.53648543,180.62,180.54,19.98457223]
[1747207901592,19.37769902,180.62,180.58,19.98457223]
[1747207901885,5.53648543,180.62,180.61,19.98457223]